Cogmind - Beta 17 @@@ ROGUE MODE // 2026.07.19 @ 20:34:30 Player: Hadza Result: Destroyed by X-62 Marksman with Pulse Rifle Performance ------------- Evolutions (2) 1000 Regions Visited (7) 1400 Robots Destroyed (67) 335 Value Destroyed (1981) 1981 Prototype IDs (30) 600 Alien Tech Used (0) 0 Bonus (327) 327 TOTAL SCORE: 5643 Bonus ------- High Alert Combat Kills 27 Aligned with FarCom 300 Cogmind --------- Core Integrity 0/550 Matter 158/300 Energy 18/100 System Corruption 0% Temperature Cool (9) Movement Core (550) Ox10 Location -8/Materials Parts ------- > --- POWER (1) -------- (None) > --- PROPULSION (2) --- (None) > --- UTILITY (6) ------ Large Storage Unit Experimental Sensor Array Improved Targeting Computer > --- WEAPON (2) ------- Heavy Particle Cannon Heavy Particle Cannon > --- INVENTORY (15) --- Field Laser Field Laser Heavy Particle Gun Heavy Assault Rifle Peak State ------------ > --- POWER ------------ Ion Engine > --- PROPULSION ------- Light Treads Light Treads > --- UTILITY ---------- Improved Heat Sink Large Storage Unit Structural Scanner Light Armor Plating Medium Armor Plating Medium Armor Plating > --- WEAPON ----------- Firepult > --- INVENTORY -------- Ion Engine Wheel Large Storage Unit Experimental Sensor Array Field Laser Field Laser Field Laser Field Laser Heavy Assault Rifle [Rating: 35] Favorites ----------- Power Ion Engine Engine Ion Engine Power Core Light Nuclear Core Propulsion Light Treads Treads Light Treads Leg Carbon-fiber Leg Wheel Wheel Utility Large Storage Unit Device ECM Suite Storage Large Storage Unit Processor Improved Targeting Computer Protection Medium Armor Plating Weapon Field Laser Energy Gun Field Laser Energy Cannon Firepult Ballistic Gun Improved Assault Rifle Launcher Heavy Rocket Launcher Build | -11 -10 -10 -9 -9 -9 -8 -8 ------- Run | Yrd Mat Min Mat Min Exi Min Mat Slots Evolved 4 | . . . 2 . . . 2 Power . | . . . . . . . . Propulsion . | . . . . . . . . Utility 4 | . . . 2 . . . 2 Weapon . | . . . . . . . . Parts Attached 52 | 7 2 3 8 2 . 2 28 Power 6 | 1 . . 2 1 . . 2 Engine 5 | 1 . . 1 1 . . 2 Core 1 | . . . 1 . . . . Reactor . | . . . . . . . . Propulsion 13 | 2 . 1 3 . . 1 6 Treads 6 | 2 . . 2 . . . 2 Leg 1 | . . . . . . 1 . Wheel 6 | . . 1 1 . . . 4 Hover . | . . . . . . . . Flight . | . . . . . . . . Utility 15 | 1 2 2 . . . . 10 Device 7 | . 1 2 . . . . 4 Storage 4 | 1 1 . . . . . 2 Processor 1 | . . . . . . . 1 Hackware . | . . . . . . . . Protection 3 | . . . . . . . 3 Artifact . | . . . . . . . . Weapon 18 | 3 . . 3 1 . 1 10 Energy Gun 6 | 1 . . 1 1 . . 3 Energy Cannon 3 | . . . . . . 1 2 Ballistic Gun 5 | 2 . . 2 . . . 1 Ballistic Cannon . | . . . . . . . . Launcher 4 | . . . . . . . 4 Special Weapon . | . . . . . . . . Impact Weapon . | . . . . . . . . Slashing Weapon . | . . . . . . . . Piercing Weapon . | . . . . . . . . Special Melee Weapon . | . . . . . . . . Unidentified Prototypes 3 | . . 1 1 . . . 1 Parts Lost 32 | . . 4 2 4 . . 22 Power 6 | . . 1 1 1 . . 3 Propulsion 10 | . . 2 . 2 . . 6 Utility 7 | . . . . . . . 7 Weapon 9 | . . 1 1 1 . . 6 Highest Loss Streak 16 | . . 3 1 4 . . 16 To Critical Strikes . | . . . . . . . . Average Backups 9 | 2 4 5 11 11 10 11 7 Power 1 | . 1 2 2 1 1 1 . Propulsion 1 | . 1 . 1 1 1 1 . Utility 3 | . 1 2 4 5 5 5 1 Weapon 3 | 1 1 . 3 3 3 4 4 Tool/Special . | . . . . . . . . Unused Backups 1 | . . . . . . . 1 Power . | . . . . . . . . Propulsion . | . . . . . . . . Utility . | . . . . . . . . Weapon 1 | . . . . . . . 1 Tool/Special . | . . . . . . . . Average Slot Usage (%) 74 | . 99 86 70 68 66 70 71 Engine 8 | . 14 10 4 10 11 11 7 Core 1 | . . . 5 . . . . Treads 9 | . 28 11 11 8 . . 6 Wheel 7 | . . 7 6 4 11 11 7 Device 11 | . 13 14 11 11 11 11 12 Storage 11 | . 14 14 11 11 11 11 11 Protection 3 | . . . . . . . 13 Energy Gun 7 | . . 7 1 16 22 18 6 Energy Cannon 1 | . . . . . . 1 4 Ballistic Gun 9 | . 28 19 18 5 . . . Peak Build Rating 35 | 6 7 14 18 15 14 30 35 Average Rating 15 | 4 6 6 13 13 12 17 22 On Entrance 11 | . 6 7 6 15 12 14 30 Avg Prop Armor Cover (%) 8 | . . . 11 . . 9 3 Naked Turns . | . . . . . . . . Heaviest Build 66 | 13 29 30 35 35 33 49 66 Greatest Support 40 | 40 40 40 40 40 10 10 40 Greatest Overweight (x) 20 | . . 2 3 3 3 4 20 Average Overweight (x) 1 | . . 1 1 1 3 3 2 Largest Inventory Capacity 15 | 8 15 15 15 15 15 15 15 Average Capacity 14 | 7 13 15 15 15 15 15 15 Most Carried 15 | 5 6 7 15 13 12 13 12 Average Carried 9 | 2 4 5 12 11 10 12 7 Final Capacity 15 | 8 15 15 15 15 15 15 15 Final Carried 13 | 3 6 6 13 10 12 12 4 Class Distribution -------------------- 83% | Mutant 8% | Scavenger-Mutant 5% | Scavenger-Skirmisher Dominant Class ---------------- Mutant | -10/Materials Mutant | -10/Mines Mutant | -9/Materials Mutant | -9/Mines Mutant | -9/Exiles Mutant | -8/Mines Mutant | -8/Materials Resources | -11 -10 -10 -9 -9 -9 -8 -8 ----------- Run | Yrd Mat Min Mat Min Exi Min Mat Matter Collected 1164 | 175 130 87 420 34 . 66 252 Remotely . | . . . . . . . . Salvage Created 2284 | . 172 107 1044 102 . 184 675 Parts 105 | . 7 6 56 5 . 6 25 Haulers Intercepted 1 | . . . . . . . 1 Recyclers Shooed 1 | . 1 . . . . . . Parts Field Recycled . | . . . . . . . . Retrieved Matter . | . . . . . . . . Parts Self-Destructed . | . . . . . . . . Prevented . | . . . . . . . . Parts Restored . | . . . . . . . . Kills | -11 -10 -10 -9 -9 -9 -8 -8 ------- Run | Yrd Mat Min Mat Min Exi Min Mat Combat Hostiles Destroyed 52 | . 4 4 23 2 . 5 14 Guns 34 | . 4 4 22 2 . 1 1 Cannons 3 | . . . . . . . 3 AOE 11 | . . . 1 . . 2 8 Classes Destroyed 14 | . 1 2 7 . . 2 2 Worker 4 | . . . 2 . . . 2 Builder 4 | . . 1 1 1 . . 1 Hauler 1 | . . . . . . . 1 Recycler 1 | . . . . . . 1 . Operator 2 | . . . 1 . . . 1 Watcher 3 | . . . 2 . . . 1 Swarmer 12 | . . . 4 . . 4 4 Grunt 26 | . 4 2 13 2 . . 5 Brawler 2 | . . . 2 . . . . Duelist 1 | . . . 1 . . . . Sentry 6 | . . . 3 . . . 3 Demolisher 2 | . . 2 . . . . . Hunter 2 | . . . . . . 1 1 Heavy 1 | . . . . . . . 1 Best Kill Streak 10 | . 4 3 10 1 . 5 6 Combat Bots Only 9 | . 4 2 9 1 . 4 5 Max Kills in Single Turn 4 | . 1 1 3 1 . 2 4 Gunslinging 1 | . . . 1 . . . . Exploded 4 | . . . 1 . . 2 4 Melee . | . . . . . . . . Uniques/NPCs Destroyed . | . . . . . . . . Combat | -11 -10 -10 -9 -9 -9 -8 -8 -------- Run | Yrd Mat Min Mat Min Exi Min Mat Hostile Shots Fired 278 | . 26 23 92 15 . 10 112 Missed 71 | . 5 6 27 5 . 3 25 Hits 207 | . 21 17 65 10 . 7 87 Melee 1 | . . . 1 . . . . Projectile 206 | . 21 17 64 10 . 7 87 AOE 7 | . . 7 . . . . . Critical Strikes 10 | . 1 2 2 . . . 5 Damage Taken 3902 | . 286 436 793 123 . 168 2096 Core 962 | . . 168 117 22 . 97 558 Absorbed by Shields . | . . . . . . . . Core Remaining (%) 57 | 100 . 32 . . . 41 . Volleys Fired 140 | . 17 13 55 13 . 9 33 Largest 2 | . 2 2 2 2 . 2 2 Hottest 250 | . 40 70 46 126 . 250 250 Shots Fired 257 | . 34 23 109 25 . 14 52 Gun 225 | . 34 23 109 25 . 10 24 Cannon 22 | . . . . . . 4 18 Launcher 10 | . . . . . . . 10 Special . | . . . . . . . . Kinetic 165 | . 34 15 109 7 . . . Thermal 82 | . . 8 . 18 . 14 42 Explosive 10 | . . . . . . . 10 Electromagnetic . | . . . . . . . . Robot Hit Streak 17 | . 10 10 17 11 . 6 7 Robot Miss Streak 4 | . 1 1 4 2 . 3 3 Penetration Max . | . . . . . . . . Secondary Targets 6 | . . 1 5 . . . . Max Gunslinging Chain 1 | . . 1 1 . . . . Shots Hit Robots 179 | . 28 18 74 15 . 9 35 Core Hits 114 | . 12 9 45 5 . 7 36 Critical Kills . | . . . . . . . . Critical Parts Destroyed . | . . . . . . . . Critical Strikes 3 | . . 1 . . . 1 1 Burn 3 | . . 1 . . . 1 1 Melee Attacks . | . . . . . . . . Impact . | . . . . . . . . Slashing . | . . . . . . . . Piercing . | . . . . . . . . Sneak Attacks . | . . . . . . . . Combat Hostiles . | . . . . . . . . Follow-up Attacks . | . . . . . . . . Damage Inflicted 3687 | . 245 148 1293 261 . 346 1394 Guns 2183 | . 244 132 1172 241 . 84 310 Cannons 222 | . . . . . . 13 209 Explosions 1211 | . . . 111 . . 225 875 Melee . | . . . . . . . . Ramming 71 | . 1 16 10 20 . 24 . Kinetic 1525 | . 244 55 1172 54 . . . Thermal 1701 | . . 77 54 187 . 322 1061 Explosive 333 | . . . . . . . 333 Electromagnetic 57 | . . . 57 . . . . Impact . | . . . . . . . . Slashing . | . . . . . . . . Piercing . | . . . . . . . . Highest Corruption 5 | . 5 5 . . . . . Average Corruption 4 | . 4 5 . . . . . Corruption Purged . | . . . . . . . . Corruption Blocked . | . . . . . . . . Effects 11 | . 8 3 . . . . . Message Errors 3 | . 2 1 . . . . . Matter Fused 2 | . 2 . . . . . . Heat Flow Errors 1 | . 1 . . . . . . Energy Discharges 2 | . 2 . . . . . . Parts Rejected 1 | . . 1 . . . . . Data Loss (minor) 1 | . 1 . . . . . . Misfires 1 | . . 1 . . . . . Overload Shots . | . . . . . . . . Overflow Damage 31 | . . . . . . 3 28 Projectiles 4 | . . . . . . . 4 Explosions 27 | . . . . . . 3 24 Melee . | . . . . . . . . Knockbacks . | . . . . . . . . Impact . | . . . . . . . . Kinetic . | . . . . . . . . Secondary . | . . . . . . . . Self-Inflicted Damage 221 | . . 8 1 2 . 12 198 Shots 9 | . . . . . . . 9 Rammed 11 | . 1 1 3 3 . 3 . Targets Rammed 11 | . 1 1 3 3 . 3 . Kicked . | . . . . . . . . Crushed . | . . . . . . . . Highest Temperature 824 | . 223 79 21 174 . 701 824 Average Temperature 183 | . 43 35 6 72 . 288 254 Received Heat Transfer 1173 | . 186 105 381 69 . . 432 Effects 34 | . . . . . . 11 23 Shutdowns 5 | . . . . . . 1 4 Energy Bleed 3 | . . . . . . 1 2 Interference 3 | . . . . . . . 3 Matter Decay 2 | . . . . . . 1 1 Short Circuit 4 | . . . . . . 1 3 Damage (minor) 4 | . . . . . . 3 1 Damage (major) 11 | . . . . . . 3 8 Damage (core) 2 | . . . . . . 1 1 Siege Activations . | . . . . . . . . Martial Activations . | . . . . . . . . Shielding Activations . | . . . . . . . . Robots Disrupted . | . . . . . . . . Combat Hostiles . | . . . . . . . . Robots Corrupted . | . . . . . . . . Combat Hostiles . | . . . . . . . . Parts Fried . | . . . . . . . . Impact Corruptions . | . . . . . . . . Robots Melted 4 | . . . . . . 2 2 Combat Hostiles 4 | . . . . . . 2 2 Parts Melted 21 | . . 1 . 2 . 4 14 Heat Transferred 7040 | . . 296 100 407 . 1539 4698 Parts Sabotaged . | . . . . . . . . Parts Stolen . | . . . . . . . . Parts Stripped . | . . . . . . . . Power Chain Reactions 1 | . . . 1 . . . . Alert | -11 -10 -10 -9 -9 -9 -8 -8 ------- Run | Yrd Mat Min Mat Min Exi Min Mat Maximum Alert Level 2 | . . . 2 . . . 1 Low Security (%) 82 | 100 100 100 51 100 . 100 90 Level 1 9 | . . . 22 . . . 9 Level 2 7 | . . . 26 . . . . Level 3 . | . . . . . . . . Level 4 . | . . . . . . . . Level 5 . | . . . . . . . . High Security . | . . . . . . . . Max Security . | . . . . . . . . Peak Influence 460 | . 90 55 460 154 . 108 227 Initial 154 | . . 23 21 154 . . 33 Average 109 | . 16 30 192 124 . 15 128 Influence Increases 1705 | . 100 105 633 70 . 148 649 Destroy 0b10 Robot/C 1040 | . 80 80 460 40 . 100 280 Destroy 0b10 Robot/NC 75 | . . 5 30 5 . 5 30 Destroy Leader 268 | . 20 20 114 10 . 20 84 Successful Hack 27 | . . . 14 . . . 13 Disable Machine 90 | . . . 15 15 . . 60 Destroy Structure 190 | . . . . . . 23 167 Lose Combat Pursuer 15 | . . . . . . . 15 Influence Decreases 1599 | . 40 110 292 372 94 60 631 Entered New Map 462 | . . 37 34 242 94 . 55 Time Decay 827 | . 40 43 238 90 . 60 356 Lost Part 310 | . . 30 20 40 . . 220 Squads Dispatched 10 | . 1 . 3 . . 1 5 Investigation 6 | . 1 . 3 . . . 2 Extermination . | . . . . . . . . Reinforcement 4 | . . . . . . 1 3 Assault . | . . . . . . . . Garrison . | . . . . . . . . Intercept . | . . . . . . . . Searches Triggered . | . . . . . . . . Construction Impeded 2 | . . . . . . 1 1 Haulers Reinforced . | . . . . . . . . Active Scanning Responses . | . . . . . . . . Cargo Convoy Interrupts . | . . . . . . . . Stealth | -11 -10 -10 -9 -9 -9 -8 -8 --------- Run | Yrd Mat Min Mat Min Exi Min Mat Distress Signals 6 | . 1 . 2 1 . . 2 Communications Jammed . | . . . . . . . . Distress Signals . | . . . . . . . . Times Spotted 72 | . 8 5 27 5 . 4 23 Peak Tracking Total 6 | . 3 2 4 2 . 2 6 Tactical Retreats 7 | . 2 1 2 1 . . 1 ECM-based Alert Blocks 10 | . 3 1 3 3 . . . Traps | -11 -10 -10 -9 -9 -9 -8 -8 ------- Run | Yrd Mat Min Mat Min Exi Min Mat Traps Triggered 4 | . 3 . . . . . 1 Indirectly . | . . . . . . . . Trap Hack Attempts . | . . . . . . . . Triggered . | . . . . . . . . Disarmed . | . . . . . . . . Reprogrammed . | . . . . . . . . Reused . | . . . . . . . . Traps Extracted . | . . . . . . . . Installed . | . . . . . . . . Triggered . | . . . . . . . . Machines | -11 -10 -10 -9 -9 -9 -8 -8 ---------- Run | Yrd Mat Min Mat Min Exi Min Mat Machines Disabled 6 | . . . 1 1 . . 4 Max in Single Turn 1 | . . . 1 1 . . 1 Machines Repaired . | . . . . . . . . Machines Dismantled . | . . . . . . . . Machines Sabotaged . | . . . . . . . . Overloaded Fab Kills . | . . . . . . . . Hacking | -11 -10 -10 -9 -9 -9 -8 -8 --------- Run | Yrd Mat Min Mat Min Exi Min Mat Machines Accessed 12 | . 1 . 6 . 1 . 4 Terminals 10 | . 1 . 6 . . . 3 Fabricators . | . . . . . . . . Repair Stations . | . . . . . . . . Recycling Units . | . . . . . . . . Scanalyzers 1 | . . . . . . . 1 Garrison Access . | . . . . . . . . Total Hacks 36 | . 2 . 15 . 1 . 18 Successful 14 | . . . 3 . 1 . 10 Failed 22 | . 2 . 12 . . . 8 Catastrophic 4 | . . . 3 . . . 1 Database Lockouts . | . . . . . . . . Manual 22 | . 3 . 10 . 1 . 8 Terminals 29 | . 2 . 15 . . . 12 Fabricators . | . . . . . . . . Repair Stations . | . . . . . . . . Recycling Units . | . . . . . . . . Scanalyzers 6 | . . . . . . . 6 Garrison Access . | . . . . . . . . Terminal Hacks 9 | . . . 3 . 1 . 5 Record 1 | . . . . . . . 1 Prototype ID Bank 2 | . . . 1 . . . 1 Branch Access Points 3 | . . . 1 . . . 2 Terminal Index 1 | . . . 1 . . . . Locate Traps 1 | . . . . . . . 1 Proto ID Catalog 1 | . . . . . 1 . . Fabricator Hacks . | . . . . . . . . Repair Station Hacks . | . . . . . . . . Recycling Unit Hacks . | . . . . . . . . Scanalyzer 5 | . . . . . . . 5 Insert Component 1 | . . . . . . . 1 Analyze 1 | . . . . . . . 1 Retrieve Study 3 | . . . . . . . 3 Garrison Access Hacks . | . . . . . . . . Unauthorized Hacks . | . . . . . . . . Terminals . | . . . . . . . . Fabricators . | . . . . . . . . Repair Stations . | . . . . . . . . Recycling Units . | . . . . . . . . Scanalyzers . | . . . . . . . . Garrison Access . | . . . . . . . . Data Cores Recovered 1 | . . . 1 . . . . Used 1 | . . . 1 . . . . Hacking Detections 10 | . 1 . 5 . . . 4 Full Trace Events 6 | . 1 . 3 . . . 2 Feedback Events . | . . . . . . . . Feedback Blocked . | . . . . . . . . Robot Schematics Acquired . | . . . . . . . . Robots Built . | . . . . . . . . Authchips . | . . . . . . . . Time . | . . . . . . . . Total Robot Build Rating . | . . . . . . . . Part Schematics Acquired 1 | . . . . . . . 1 Parts Built . | . . . . . . . . Authchips . | . . . . . . . . Time . | . . . . . . . . Total Part Build Rating . | . . . . . . . . Part Studies Acquired 3 | . . . . . . . 3 Parts Repaired . | . . . . . . . . Time . | . . . . . . . . Parts Recycled . | . . . . . . . . Recycled Matter . | . . . . . . . . Retrieved Matter . | . . . . . . . . Retrieved Components . | . . . . . . . . Parts Scanalyzed 1 | . . . . . . . 1 Part Schematics Acquired 1 | . . . . . . . 1 Parts Damaged . | . . . . . . . . Bothacking | -11 -10 -10 -9 -9 -9 -8 -8 ------------ Run | Yrd Mat Min Mat Min Exi Min Mat Used RIF Installer . | . . . . . . . . Robots Hacked . | . . . . . . . . Non-combat . | . . . . . . . . Combat . | . . . . . . . . Robot Hacks Applied . | . . . . . . . . Relay Couplers Released . | . . . . . . . . Fabnet Peak Effective % . | . . . . . . . . Robots Rewired . | . . . . . . . . Allies Hacked . | . . . . . . . . Hacks Repelled . | . . . . . . . . Allies | -11 -10 -10 -9 -9 -9 -8 -8 -------- Run | Yrd Mat Min Mat Min Exi Min Mat Total Allies . | . . . . . . . . Largest Group . | . . . . . . . . Highest-Rated Group . | . . . . . . . . Highest-Rated Ally . | . . . . . . . . Total Orders . | . . . . . . . . Ally Attacks . | . . . . . . . . Total Damage . | . . . . . . . . Kills . | . . . . . . . . Allies Corrupted . | . . . . . . . . Allies Melted . | . . . . . . . . Turrets Deployed 1 | . . . . . 1 . . Intel | -11 -10 -10 -9 -9 -9 -8 -8 ------- Run | Yrd Mat Min Mat Min Exi Min Mat Active Infowar (turns) 2638 | . 349 117 816 195 278 324 559 Sensors 29 | . . 1 . . . . 28 Terrain 166 | . . . . . . . 166 Structural 531 | . . . . . . . 531 ECM 2078 | . 349 116 816 195 278 324 . Robot Analysis Total . | . . . . . . . . Derelict Logs Recovered . | . . . . . . . . Drone Launches . | . . . . . . . . Drone Recoveries . | . . . . . . . . Exploration | -11 -10 -10 -9 -9 -9 -8 -8 ------------- Run | Yrd Mat Min Mat Min Exi Min Mat Turns Passed 3048 | 82 365 119 832 195 278 370 807 Spaces Moved 1505 | 47 137 57 442 104 222 186 310 Core 30 | 8 . . . . . . 22 Treads 514 | 39 137 22 188 38 . . 90 Legs . | . . . . . . . . Wheels 961 | . . 35 254 66 222 186 198 Hover . | . . . . . . . . Flight . | . . . . . . . . Fastest Speed 50 | 50 160 110 95 125 125 125 95 Average Speed 145 | 141 160 129 132 140 125 127 186 Slowest Speed 1050 | 160 160 160 160 240 125 140 1050 Overloaded Moves . | . . . . . . . . Propulsion Burnouts . | . . . . . . . . Robots Hopped . | . . . . . . . . Potential Cave-ins . | . . . . . . . . Cave-ins Triggered . | . . . . . . . . Exploration Rate (%) 34 | 3 33 19 44 34 62 55 29 Regions Visited 7 Branch Regions 4 Pre-discovered Areas . | . . . . . . . . Known Exits Taken 1 | . . . 1 . . . . Unknown Exits Taken 6 | 1 1 1 . 1 1 1 . Scrap Searched . | . . . . . . . . Spaces Dug . | . . . . . . . . Terrain Destroyed 234 | . . . . . . 31 203 Melee . | . . . . . . . . Projectile 9 | . . . . . . . 9 AOE 225 | . . . . . . 31 194 Terrain Rammed . | . . . . . . . . Walls Destroyed . | . . . . . . . . Machines Disabled . | . . . . . . . . Actions | -11 -10 -10 -9 -9 -9 -8 -8 --------- Run | Yrd Mat Min Mat Min Exi Min Mat Total 2120 | 62 255 83 576 125 222 305 492 Wait 332 | . 93 2 49 3 . 103 82 Move 1498 | 46 136 56 441 103 221 185 310 Hop . | . . . . . . . . Pick Up 55 | 9 5 3 13 . 1 1 23 Fast Attach . | . . . . . . . . Attach 55 | 6 1 5 7 3 . 2 31 Detach 7 | . . 2 2 . . 2 1 Swap 10 | 1 1 1 4 . . . 3 Drop 12 | . 1 . 2 . . . 9 Fire 140 | . 17 13 55 13 . 9 33 Melee . | . . . . . . . . Ram 7 | . . 1 2 1 . 3 . Kick . | . . . . . . . . Crush 4 | . 1 . 1 2 . . . Escape Stasis . | . . . . . . . . Rewire . | . . . . . . . . Trap . | . . . . . . . . Miscellaneous . | . . . . . . . . Route ------- -11/Scrapyard -10/Materials -10/Mines -9/Materials (discovered 2 exits: *Min x2) -9/Mines (discovered 2 exits: *Mat / *Exi) -9/Exiles -8/Mines -8/Materials History --------- Turn | Location | Event 7 | -11/Scrapyard | Discovered new exit (range 15) 83 | -11/Scrapyard | Entered Materials 313 | -10/Materials | Build established: Mutant 429 | -10/Materials | Discovered new exit (range 13) 448 | -10/Materials | Entered Mines 449 | -10/Mines | Assembled infested the area 454 | -10/Mines | Assisted by a Guerilla fighting off Assembled 481 | -10/Mines | Found a damaged Exp. Sensor Array with a note attached 484 | -10/Mines | Found Prototype Device 500 | -10/Mines | Identified Exp. Sensor Array 520 | -10/Mines | Discovered new exit (range 15) 523 | -10/Mines | Lost 3 parts (2n1w) 527 | -10/Mines | Core integrity fell below 50% 567 | -10/Mines | Entered Materials 567 | -9/Materials | Evolved 2 slots: Utility x2 1010 | -9/Materials | Destroyed 9 combat bots 1092 | -9/Materials | Identified exit to Mines 1399 | -9/Materials | Entered Mines 1438 | -9/Mines | Discovered new exit (range 7) 1526 | -9/Mines | Lost 4 parts (1p2n1w) 1576 | -9/Mines | Found a hidden stash of uninstalled traps 1589 | -9/Mines | Deemed a non-threat by the Exiles lab entrance 1589 | -9/Mines | Discovered new exit (range 5) 1594 | -9/Mines | Entered Exiles 1624 | -9/Exiles | Met 8R-AWN 1647 | -9/Exiles | Met EX-HEX 1681 | -9/Exiles | Met EX-BIN 1696 | -9/Exiles | Aligned with FarCom system 1697 | -9/Exiles | Given EX-Vault access code 1726 | -9/Exiles | Opened EX-Vault 1733 | -9/Exiles | DAS Turret deployed 1736 | -9/Exiles | Found Firepult 1763 | -9/Exiles | Warned to stay clear of 0b10 Research branches 1795 | -9/Exiles | Met EX-DEC 1858 | -9/Exiles | Discovered new exit (range 12) 1872 | -9/Exiles | Left Exiles lab with Firepult 1872 | -9/Exiles | Entered Mines 2202 | -8/Mines | Core integrity fell below 50% 2215 | -8/Mines | Discovered new exit (range 16) 2242 | -8/Mines | Entered Materials 2242 | -8/Materials | Evolved 2 slots: Utility x2 2634 | -8/Materials | Lost 5 parts (1p2n2u) 2991 | -8/Materials | Core integrity fell below 50% 3008 | -8/Materials | Core integrity fell below 20% 3049 | -8/Materials | Destroyed by X-62 Marksman with Pulse Rifle Last Messages --------------- 03020_ The unstable cave ceiling collapses. 03020_ Penetrated by Slug. 03023_ Slug penetrates Earth. 03024_ Penetrated by Slug. 03025_ The unstable cave ceiling collapses. 03025_ Acquired 7 matter. 03027_ Penetrated by Slug. 03027_ Acquired 8 matter. 03027_ Slug penetrates Earth. 03028_ The unstable cave ceiling collapses. 03029_ K-01 Serf collects debris. 03029_ Penetrated by Slug. 03029_ Wheel destroyed. 03030_ The unstable cave ceiling collapses. 03032_ Penetrated by Slug. 03033_ The unstable cave ceiling collapses. 03039_ K-01 Serf collects debris. 03041_ The unstable cave ceiling collapses. 03041_ Slug penetrates Earth. 03049_ Penetrated by Slug. Map ----- +----------------------------------------------------+ | "??????????## "T" ##?????????? | | ???? ??????## """ ##?????????? | | ???????????## ##?????????? | | ?????##+########+###########??? | | ?????## ###### #########??? | | ??? ### = ##??? | | ??? + " !!##??? | | ??? ### ##??? | | ??? ########## #########??? | | "????########## ##########??? | | # ?????? ## # ?????????? | | """ # ???????## # ??????????? | | """ # ???????## + ??????????? | | """ # ???????## # ??????????? | | ?????????## # ??????????? | | ? # ???????## # ####?? | | ?####?? ?????## ###########?? | | ?####????????## # ##?? | | ##### ## # """ ##?? | | #########+##### + """ ##?? | | ^^ # """ ##?? | | ^ # !##?? | | ?? """ # """ ##?? | | ####+### "T" ### """ ##?? | | # ^^ ### """ ###? | | #^ ### @ #### | | #^ ## # #"# | | # # ;# | | # !! #x % %# | | #[! =% x !## | | #!! # !## | | # % # == ]]## | | #+###### # == ]]## | | # ### % # === # ## | | # #### | | ? # ###### | | # ####?? | | ############ % # ##+##???? | | # ###### #????? | | ???????????### "????????? | | ????????????#" ??????????? | | ????????????## # #???????????? | | ????????????## ### ??????????? | | ?????????????? ##????????????? | | ?????????????? #????????????? | | ?????????????? ?????????????? | | ??????????????? ?????????????? | | ?????????????? [##???????????? | | ??????????????+### ???????????? | | ?????????????? # ???????????? | +----------------------------------------------------+ Best States ------------- Heat Dissipation 45 Energy Generation 14 Energy Capacity 265 Matter Stores 350 Matter Capacity 350 Sight Range 16 Robot Scan Range 20 Terrain Scan Range 14 Terrain Scan Density 10 ECM Strength 1 Armor Coverage 600 Evasion (%) 50 Targeting Accuracy 6 Recoil Reduction 2 Item Schematics ----------------- Field Laser | -8/Materials | Scanalyzed Robot Schematics ------------------ None Fabricated ------------ Nothing Repaired ---------- Nothing Studied --------- Field Laser | -8/Materials | Hacked Lgt. Treads | -8/Materials | Hacked Ion Engine | -8/Materials | Hacked Alien Tech Used ----------------- None Achievements -------------- None Challenges ------------ None Game ------ Seed AluminumMetaObliterator Manual? 0 Play Time 00:26:40 Cumulative 21.3 hours Start 2026.07.17 @ 10:28:38 End 2026.07.19 @ 20:34:30 Sessions 3 Manual Loads 0 Difficulty Rogue Special Mode None Game No. 37 Rogue 37 Adventurer 0 Explorer 0 Win Type - Total 0 Types 0/0/0/0/0/0/0/0/0/0 Lore% 6 Gallery% 17 Achievement% 18 Wizard Run 0 Options --------- Layout 1 ASCII 0 Keyboard 0 Movement Mouse Keybinds 0 Fullscreen 1 Font 24/Smallcaps Map View 50x35 Zoom Use 0% Tactical HUD 1 Map Filters NONE Filters NONE Steam 1 RUN: e6581abd-2a54-4bc1-bcca-c302bd33b54d